Cogmind - Beta 9.4 @@@ ROGUE MODE // 2020.01.09 @ 16:49:16 Player: Enzo Result: Destroyed by D-53 Grenadier with Mini Grenade Launcher Performance ------------- Evolutions (0) 0 Regions Visited (2) 400 Robots Destroyed (18) 90 Value Destroyed (303) 303 Prototype IDs (2) 40 Alien Tech Used (0) 0 Bonus (0) 0 TOTAL SCORE: 833 Bonus ------- None Cogmind --------- Core Integrity 0/250 Matter 300/300 Energy 100/100 System Corruption 0% Temperature Cool (0) Movement Core (50) Location -10/Mines Parts ------- > --- POWER (1) -------- (None) > --- PROPULSION (2) --- (None) > --- UTILITY (2) ------ Improved Heat Sink > --- WEAPON (2) ------- (None) > --- INVENTORY (4) ---- Light Nuclear Core Light Treads Datajack Mining Laser Peak State ------------ > --- POWER ------------ Ion Engine > --- PROPULSION ------- Light Treads Light Treads > --- UTILITY ---------- Improved Heat Sink Small Storage Unit > --- WEAPON ----------- Small Laser Light Assault Rifle > --- INVENTORY -------- Light Treads Signal Interpreter Seismic Analyzer Datajack Mining Laser [Rating: 9] Favorites ----------- Power Ion Engine Engine Ion Engine Propulsion Light Treads Treads Light Treads Wheel Compact Wheel Utility Small Storage Unit Device Improved Heat Sink Storage Small Storage Unit Weapon Medium Laser Energy Gun Medium Laser Ballistic Gun Light Assault Rifle Special Weapon Mining Laser Special Melee Weapon Datajack Build | -11 -10 -10 ------- Run | Scr Mat Min Slots Evolved . | . . . Power . | . . . Propulsion . | . . . Utility . | . . . Weapon . | . . . Parts Attached 20 | 8 11 1 Power 1 | 1 . . Engine 1 | 1 . . Core . | . . . Reactor . | . . . Propulsion 4 | 3 1 . Treads 3 | 2 1 . Leg . | . . . Wheel 1 | 1 . . Hover . | . . . Flight . | . . . Utility 4 | 2 1 1 Device 2 | 1 1 . Storage 2 | 1 . 1 Processor . | . . . Hackware . | . . . Protection . | . . . Artifact . | . . . Weapon 11 | 2 9 . Energy Gun 5 | 2 3 . Energy Cannon . | . . . Ballistic Gun 3 | . 3 . Ballistic Cannon . | . . . Launcher . | . . . Special Weapon 1 | . 1 . Impact Weapon . | . . . Slashing Weapon . | . . . Piercing Weapon . | . . . Special Melee Weapon 2 | . 2 . Unidentified Prototypes . | . . . Parts Lost 5 | . 1 4 Power 1 | . . 1 Propulsion 1 | . . 1 Utility . | . . . Weapon 3 | . 1 2 Highest Loss Streak 4 | . 1 4 Average Slot Usage (%) 98 | . 98 95 Engine 13 | . 14 12 Treads 27 | . 27 26 Device 14 | . 14 14 Storage 14 | . 14 14 Energy Gun 23 | . 23 25 Ballistic Gun 2 | . 2 . Naked Turns . | . . . Heaviest Build 18 | 13 14 18 Greatest Support 40 | 40 40 40 Greatest Overweight (x) 2 | . . 2 Average Overweight (x) . | . . . Largest Inventory Capacity 8 | 6 6 8 Average Capacity 6 | 5 6 7 Most Carried 6 | 2 6 6 Average Carried 4 | . 4 5 Final Capacity 6 | 6 6 4 Final Carried 5 | 2 5 4 Class Distribution -------------------- 100% | Mutant Dominant Class ---------------- Mutant | -10/Materials Mutant | -10/Mines Resources | -11 -10 -10 ----------- Run | Scr Mat Min Matter Collected 380 | 280 100 . Remotely . | . . . Salvage Created 533 | 127 406 . Parts 39 | 9 30 . Haulers Intercepted 1 | . 1 . Recyclers Shooed 2 | . 2 . Parts Field Recycled . | . . . Retrieved Matter . | . . . Parts Self-Destructed . | . . . Prevented . | . . . Kills | -11 -10 -10 ------- Run | Scr Mat Min Combat Hostiles Destroyed 10 | . 10 . Guns 10 | . 10 . Classes Destroyed 8 | 2 6 . Worker 1 | . 1 . Tunneler 2 | 2 . . Hauler 1 | . 1 . Recycler 1 | 1 . . Operator 1 | . 1 . Watcher 2 | . 2 . Swarmer 6 | . 6 . Grunt 4 | . 4 . Best Kill Streak 3 | 3 3 . Combat Bots Only 3 | . 3 . Max Kills in Single Turn 1 | 1 1 . Gunslinging . | . . . Exploded . | . . . Melee . | . . . Uniques/NPCs Destroyed . | . . . Combat | -11 -10 -10 -------- Run | Scr Mat Min Damage Taken 919 | 30 334 555 Core 253 | . 45 208 Absorbed by Shields . | . . . Core Remaining (%) 100 | 100 . . Volleys Fired 53 | 5 48 . Largest 2 | 2 2 . Hottest 100 | 80 100 . Shots Fired 98 | 10 88 . Gun 97 | 10 87 . Cannon . | . . . Launcher . | . . . Special 1 | . 1 . Kinetic 10 | . 10 . Thermal 68 | 5 63 . Explosive . | . . . Electromagnetic 20 | 5 15 . Robot Hit Streak 10 | 6 10 . Robot Miss Streak 4 | 1 4 . Penetration Max . | . . . Secondary Targets . | . . . Shots Hit Robots 63 | 7 56 . Core Hits 32 | 4 27 1 Critical Hits . | . . . Critical Kills . | . . . Critical Parts Destroyed . | . . . Melee Attacks . | . . . Impact . | . . . Slashing . | . . . Piercing . | . . . Sneak Attacks . | . . . Combat Hostiles . | . . . Follow-up Attacks . | . . . Damage Inflicted 824 | 146 672 6 Guns 760 | 88 672 . Cannons . | . . . Explosions 58 | 58 . . Melee . | . . . Ramming 6 | . . 6 Kinetic 62 | . 62 . Thermal 528 | 81 447 . Explosive . | . . . Electromagnetic 228 | 65 163 . Impact . | . . . Slashing . | . . . Piercing . | . . . Highest Corruption . | . . . Average Corruption . | . . . Corruption Purged . | . . . Overload Shots . | . . . Overflow Damage . | . . . Projectiles . | . . . Explosions . | . . . Melee . | . . . Knockbacks . | . . . Impact . | . . . Kinetic . | . . . Secondary . | . . . Self-Inflicted Damage 30 | 30 . . Shots 1 | 1 . . Rammed 3 | . . 3 Targets Rammed 3 | . . 3 Kicked . | . . . Crushed . | . . . Highest Temperature 279 | 48 279 . Average Temperature 77 | 21 89 . Received Heat Transfer 162 | . 162 . Siege Activations . | . . . Robots Corrupted . | . . . Combat Hostiles . | . . . Parts Fried 2 | . 2 . Impact Corruptions . | . . . Robots Melted . | . . . Combat Hostiles . | . . . Parts Melted 1 | . 1 . Heat Transferred 1290 | 100 1190 . Parts Sabotaged . | . . . Parts Stolen . | . . . Parts Stripped . | . . . Power Chain Reactions 1 | 1 . . Missiles Intercepted . | . . . Alert | -11 -10 -10 ------- Run | Scr Mat Min Peak Influence 208 | 15 208 . Average Influence 33 | 6 39 . Maximum Alert Level 1 | . 1 . Low Security (%) 95 | 100 94 100 Level 1 4 | . 5 . Level 2 . | . . . Level 3 . | . . . Level 4 . | . . . Level 5 . | . . . High Security . | . . . Max Security . | . . . Squads Dispatched 2 | . 2 . Investigation . | . . . Extermination . | . . . Reinforcement 2 | . 2 . Assault . | . . . Garrison . | . . . Intercept . | . . . Construction Impeded . | . . . Haulers Reinforced . | . . . Stealth | -11 -10 -10 --------- Run | Scr Mat Min Distress Signals . | . . . Communications Jammed . | . . . Distress Signals . | . . . Times Spotted 21 | . 19 2 Peak Tracking Total 3 | . 3 2 Tactical Retreats 1 | . 1 . Traps | -11 -10 -10 ------- Run | Scr Mat Min Traps Triggered . | . . . Indirectly . | . . . Trap Hack Attempts 24 | . 24 . Triggered . | . . . Disarmed 3 | . 3 . Reprogrammed . | . . . Reused . | . . . Traps Extracted . | . . . Installed . | . . . Triggered . | . . . Machines | -11 -10 -10 ---------- Run | Scr Mat Min Machines Disabled 1 | . 1 . Max in Single Turn 1 | . 1 . Machines Sabotaged . | . . . Garrisons Compromised . | . . . Overloaded Fab Kills . | . . . Fab Network Shutdowns . | . . . Hacking | -11 -10 -10 --------- Run | Scr Mat Min Machines Accessed 7 | . 7 . Terminals 6 | . 6 . Fabricators . | . . . Repair Stations 1 | . 1 . Recycling Units . | . . . Scanalyzers . | . . . Garrison Access . | . . . Total Hacks 22 | . 22 . Successful 10 | . 10 . Failed 12 | . 12 . Catastrophic 1 | . 1 . Database Lockouts . | . . . Manual 8 | . 8 . Terminals 19 | . 19 . Fabricators . | . . . Repair Stations 3 | . 3 . Recycling Units . | . . . Scanalyzers . | . . . Garrison Access . | . . . Terminal Hacks 7 | . 7 . Robot Analysis 2 | . 2 . Prototype ID Bank 1 | . 1 . Alert Level 1 | . 1 . Locate Traps 1 | . 1 . Transport Status 1 | . 1 . Recall Reinforcements 1 | . 1 . Fabricator Hacks . | . . . Repair Station Hacks 2 | . 2 . Scan Component 1 | . 1 . Repair 1 | . 1 . Recycling Unit Hacks . | . . . Scanalyzer . | . . . Garrison Access Hacks . | . . . Unauthorized Hacks 5 | . 5 . Terminals 1 | . 1 . Botnet 1 | . 1 . Fabricators . | . . . Repair Stations . | . . . Recycling Units . | . . . Scanalyzers . | . . . Garrison Access . | . . . Data Cores Recovered . | . . . Used . | . . . Hacking Detections 7 | . 7 . Full Trace Events . | . . . Feedback Events . | . . . Feedback Blocked . | . . . Robot Schematics Acquired . | . . . Robots Built . | . . . Matter . | . . . Time . | . . . Total Robot Build Rating . | . . . Part Schematics Acquired . | . . . Parts Built . | . . . Matter . | . . . Time . | . . . Total Part Build Rating . | . . . Parts Repaired 1 | . 1 . Time 26 | . 26 . Parts Recycled . | . . . Recycled Matter . | . . . Retrieved Matter . | . . . Retrieved Components . | . . . Parts Scanalyzed . | . . . Part Schematics Acquired . | . . . Parts Damaged . | . . . Bothacking | -11 -10 -10 ------------ Run | Scr Mat Min Used RIF Installer . | . . . Robots Hacked . | . . . Non-combat . | . . . Combat . | . . . Robot Hacks Applied . | . . . Relay Couplers Released . | . . . Robots Rewired . | . . . Allies Hacked . | . . . Hacks Repelled . | . . . Allies | -11 -10 -10 -------- Run | Scr Mat Min Total Allies . | . . . Largest Group . | . . . Highest-Rated Group . | . . . Highest-Rated Ally . | . . . Total Orders . | . . . Ally Attacks . | . . . Total Damage . | . . . Kills . | . . . Allies Corrupted . | . . . Allies Melted . | . . . Intel | -11 -10 -10 ------- Run | Scr Mat Min Robot Analysis Total 2 | . 2 . Derelict Logs Recovered . | . . . Drone Launches . | . . . Drone Recoveries . | . . . Exploration | -11 -10 -10 ------------- Run | Scr Mat Min Turns Passed 1577 | 136 1315 126 Spaces Moved 819 | 68 678 73 Core 8 | 5 . 3 Treads 807 | 59 678 70 Legs . | . . . Wheels 4 | 4 . . Hover . | . . . Flight . | . . . Fastest Speed 50 | 50 160 50 Average Speed 158 | 148 160 158 Slowest Speed 160 | 160 160 160 Overloaded Moves . | . . . Propulsion Burnouts . | . . . Robots Hopped . | . . . Cave-ins Triggered . | . . . Exploration Rate (%) 38 | 5 87 23 Regions Visited 2 Branch Regions 1 Pre-discovered Areas . | . . . Known Exits Taken . | . . . Unknown Exits Taken 2 | 1 1 . Scrap Searched . | . . . Spaces Dug 1 | . 1 . Terrain Destroyed 5 | 4 1 . Melee . | . . . Projectile 1 | . 1 . AOE 4 | 4 . . Actions | -11 -10 -10 --------- Run | Scr Mat Min Total 989 | 90 817 82 Wait 54 | 5 47 2 Move 817 | 67 677 73 Hop . | . . . Pick Up 8 | 3 5 . Fast Attach 13 | 8 5 . Attach . | . . . Detach . | . . . Swap 7 | . 6 1 Drop 10 | 2 5 3 Fire 53 | 5 48 . Melee . | . . . Ram . | . . . Kick . | . . . Crush 3 | . . 3 Escape Stasis . | . . . Rewire . | . . . Trap 24 | . 24 . Miscellaneous . | . . . Route ------- -11/Scrapyard -10/Materials (discovered 5 exits: [*Mat x3] / [*Min x2]) -10/Mines (discovered 1 exit: [*Mat]) History --------- Turn | Location | Event 18 | -11/Scrapyard | Discovered new exit (range 14) 137 | -11/Scrapyard | Entered Materials 161 | -10/Materials | Discovered new exit (range 9) 273 | -10/Materials | Discovered new exit (range 13) 309 | -10/Materials | Build established: Mutant 459 | -10/Materials | Repaired Lgt. Treads 663 | -10/Materials | Discovered new exit (range 15) 916 | -10/Materials | Discovered new exit (range 12) 983 | -10/Materials | Discovered new exit (range 15) 1452 | -10/Materials | Entered Mines 1472 | -10/Mines | Discovered new exit (range 12) 1547 | -10/Mines | Assembled infested the area 1570 | -10/Mines | Core integrity fell below 50% 1577 | -10/Mines | Core integrity fell below 20% 1578 | -10/Mines | Destroyed by D-53 Grenadier with Mini Grenade Launcher Last Messages --------------- 01486_ Dropped Sml. Storage Unit. 01489_ R-06 Scavenger collects Sml. Storage Unit. 01490_ K-01 Serf collects debris. 01547_ ALERT: Infestation in the mines, dispatching Demolisher response squad. 01556_ C-30 ARC bursts open, deploying its payload. 01556_ D-53 Grenadier unfolds itself. 01563_ Ion Engine destroyed. 01563_ Med. Laser destroyed. 01564_ Slammed into D-53 Grenadier. 01565_ Med. Laser destroyed. 01565_ Slammed into D-53 Grenadier. 01567_ The unstable cave ceiling collapses. 01567_ Slammed into D-53 Grenadier. 01567_ Lgt. Treads destroyed. 01568_ The unstable cave ceiling collapses. 01573_ Dropped Lgt. Treads. 01575_ The unstable cave ceiling collapses. 01576_ K-01 Serf destroyed. 01577_ Dropped Med. Storage Unit. Map ----- +----------------------------------------------------+ | ???????????????????????# #?# ???????? | | ??????????????????????## ## ???????? | | ??????????????????????# ??????? | | ??????????????????????# ??????? | | ??????????????????????# ?????? | | ???????????????????????# ?????? | | ???????????????????????# ?????? | | ????????????????######## ## #?????? | | ?????????????# ##???????????????? | | ?????????????????###### ##???????????????? | | ?????????????????????## ##??????????????? | | ????????????????????## #??????????????? | | ???????????????????## u #??????????????? | | ???????????????????# #??????????????? | | ?????????????????### ## ##??????????????? | | ?????????????##### d ##?###???????????????? | | ?????????????# ##???????????????????? | | ####???????### # ##??????????????????? | | #### ## ##?????????????????? | | d ######????????????? | | ??########## # ##???????????? | | ???????????## ##??????????? | | ????????????## # = #??????????? | | ?????????????#### # [ #??????????? | | ????????????????#### ! #### ##??????????? | | ???????????????????# ! @ ##????????????????? | | ???????????????????# != ###???????????????? | | ???????????????????# %* ##??????????????? | | ???????????????????# !! = #??????????????? | | ???????????????????# < #??????????????? | | ???????????????????##### ##??????????????? | | ???????????????????### ###???????????????? | | ??????????????????## #####?????????????????? | | ?????????????????## ###?????????????????????? | | ?????????????????# ##???????????????????????? | | ?????????????????## #????????????????????????? | | ??????????????????####????????????????????????? | | ??????????????????????????????????????????????? | | ??????????????????????????????????????????????? | | ??????????????????????????????????????????????? | | ??????????????????????????????????????????????? | | ??????????????????????????????????????????????? | | | | | | | | | | | | | | | | | +----------------------------------------------------+ Best States ------------- Heat Dissipation 39 Energy Generation 10 Energy Capacity 250 Matter Stores 300 Matter Capacity 300 Sight Range 16 Terrain Scan Range 16 Terrain Scan Density 10 Evasion (%) 40 Recoil Reduction 2 Item Schematics ----------------- None Robot Schematics ------------------ None Fabricated ------------ Nothing Alien Tech Used ----------------- None Achievements -------------- None Challenges ------------ None Game ------ Seed AngularRegenerativeMinigun Manual? 0 Play Time 00:10:00 Cumulative 23.0 hours Start 2020.01.09 @ 16:34:25 End 2020.01.09 @ 16:49:16 Sessions 1 Manual Loads 0 Difficulty Rogue Special Mode None Game No. 54 Rogue 54 Adventurer 0 Explorer 0 Win Type - Total 0 Types 0/0/0/0/0/0/0 Lore% 37 Gallery% 33 Achievement% 31 Wizard Run 0 Options --------- ASCII 0 Keyboard 0 Movement Numpad Keybinds 0 Fullscreen 2 Font 24/Smallcaps Map View 76x50 Tactical HUD 1 Map Filters NONE Filters NONE Steam 1 RUN: 1130f0e7-9db7-4903-aadc-e04dfa0b6e5b